bitfinex/quotes_SOLUSD_20250918
["timestamp","ask_amount","ask_price","bid_price","bid_amount"]
[1758165393020,0.67,247.7,247.68,0.14216157]
[1758165393204,0.67,247.74,247.68,0.14216157]
[1758165394624,0.67,247.74,247.7,0.14216157]
[1758165394810,0.67,247.73,247.7,0.14216157]
[1758165395211,6.39396663,247.79,247.7,0.14216157]
[1758165395418,0.67,247.72,247.7,0.14216157]
[1758165395716,0.67,247.78,247.7,0.14216157]
[1758165396339,2.35823744,247.77,247.7,0.14216157]
[1758165396631,6.65965787,247.76,247.65,0.17216157]
[1758165397009,2.35823744,247.75,247.65,0.03]
[1758165397325,1.95349385,247.74,247.65,0.03]
[1758165397510,0.40474359,247.75,247.65,0.03]
[1758165397511,1.95349385,247.66,247.65,0.03]
[1758165397717,1.95349385,247.66,247.62,0.03]
[1758165397912,1.95349385,247.63,247.62,0.03]
[1758165398326,0.67,247.63,247.62,0.03]
[1758165398508,2.62349385,247.67,247.62,0.03]
[1758165398708,0.67,247.66,247.62,0.17216157]
[1758165399221,0.67,247.65,247.62,0.17216157]
[1758165399823,1.95349385,247.69,247.62,0.61216157]
[1758165400129,2.62349385,247.69,247.62,0.03]
[1758165400631,1.95349385,247.67,247.62,0.03]
[1758165401015,0.67,247.66,247.62,0.03]
[1758165401513,1.95349385,247.67,247.62,0.03]
[1758165401514,0.67,247.65,247.62,0.03]
[1758165402115,1.95349385,247.63,247.62,0.03]
[1758165402517,2.62349385,247.63,247.62,0.03]
[1758165403136,0.67,247.7,247.62,14.06559401]
[1758165403324,0.67,247.7,247.62,18.10404001]
[1758165404039,2.62349385,247.72,247.63,0.44]
[1758165404348,0.67,247.72,247.63,0.44]
[1758165404723,0.67,247.72,247.62,27.76015502]
[1758165404924,0.67,247.71,247.62,27.76015502]
[1758165405349,0.67,247.7,247.62,17.66400223]
[1758165405549,0.67,247.7,247.62,13.62559401]
[1758165405936,0.67,247.7,247.62,17.66400232]
[1758165407456,0.67,247.69,247.62,0.03]
[1758165407862,1.25246814,247.68,247.62,0.03]
[1758165408027,1.25246814,247.66,247.62,0.03]
[1758165408434,0.67,247.65,247.62,0.03]
[1758165409569,5.95997486,247.68,247.62,0.03]
[1758165409765,0.67,247.67,247.62,0.03]
[1758165410065,1.25246814,247.66,247.62,0.03]
[1758165410433,0.67,247.65,247.62,0.03]
[1758165411239,0.67,247.64,247.62,0.03]
[1758165411661,1.92246814,247.64,247.62,0.03]
[1758165411841,0.67,247.63,247.62,0.03]
[1758165412541,0.67,247.65,247.62,0.03]
[1758165413061,0.67,247.64,247.62,0.03]
[1758165413761,1.0,247.63,247.62,0.03]
[1758165414757,1.0,247.63,247.62,26.47]
[1758165415540,1.0,247.63,247.62,0.03]
[1758165415941,1.67,247.63,247.62,0.03]
[1758165416249,1.67,247.63,247.55,0.44]
[1758165416250,1.67,247.63,247.56,17.63501879]
[1758165416451,1.67,247.63,247.55,0.44]
[1758165416650,1.67,247.63,247.51,4.14015192]
[1758165416651,1.67,247.63,247.54,26.0]
[1758165416834,2.92246814,247.63,247.54,26.0]
[1758165417236,1.25246814,247.58,247.51,0.1]
[1758165417659,0.67,247.57,247.51,0.1]
[1758165419263,1.07474359,247.57,247.51,4.14020535]
[1758165420166,1.0,247.58,247.52,4.48007756]
[1758165420374,1.0,247.58,247.53,0.44]
[1758165420668,1.0,247.58,247.55,26.0]
[1758165420866,1.0,247.58,247.56,0.44]
[1758165421073,1.0,247.58,247.57,0.44]
[1758165421377,1.0,247.58,247.57,18.07485563]
[1758165421750,1.0,247.63,247.6,26.0]
[1758165421964,1.0,247.63,247.61,26.0]
[1758165422469,0.68,247.62,247.52,10.0999043]
[1758165422655,1.10474359,247.61,247.53,4.03991435]
[1758165422857,0.7,247.61,247.53,4.03991435]
[1758165423164,0.7,247.61,247.53,30.03991435]
[1758165423377,1.95246814,247.61,247.53,30.03991435]
[1758165423754,1.7,247.63,247.53,40.13970023]
[1758165423949,0.7,247.62,247.53,40.13970023]
[1758165425261,0.7,247.62,247.53,30.03991435]
[1758165425849,0.7,247.62,247.54,26.0]
[1758165426378,0.7,247.62,247.53,14.13970023]
[1758165426559,0.7,247.62,247.53,4.03991435]
[1758165426870,1.7,247.63,247.54,0.44]
[1758165427075,1.7,247.63,247.54,26.44]
[1758165427377,1.7,247.63,247.55,4.03958796]
[1758165427570,1.0,247.63,247.55,4.03958796]
[1758165427877,1.25246814,247.61,247.54,26.0]
[1758165428084,0.7,247.6,247.54,26.0]
[1758165428567,6.29087512,247.63,247.54,30.03967895]
[1758165428568,1.0,247.63,247.54,30.03967895]
[1758165428771,0.7,247.62,247.54,30.03967895]
[1758165428973,0.7,247.61,247.54,30.03967895]
[1758165430857,0.7,247.6,247.54,26.0]
[1758165431059,1.95246814,247.6,247.53,0.03]
[1758165431455,0.7,247.6,247.53,4.06988073]
[1758165431656,0.7,247.6,247.54,26.0]
[1758165432673,0.7,247.6,247.53,4.06988073]
[1758165432674,1.10474359,247.59,247.53,0.03]
[1758165432860,1.25246814,247.58,247.53,0.03]
[1758165433059,1.25246814,247.56,247.53,0.03]
[1758165433366,0.40474359,247.55,247.53,0.03]
[1758165433556,1.10474359,247.55,247.53,0.03]
[1758165433755,0.7,247.54,247.53,0.03]
[1758165434680,0.40474359,247.56,247.53,0.03]
[1758165434857,1.10474359,247.59,247.53,0.03]
[1758165435056,0.7,247.61,247.55,0.5]
[1758165435665,0.7,247.61,247.55,4.53955788]
[1758165435871,1.06,247.63,247.55,4.53955788]
[1758165437582,1.10474359,247.62,247.55,0.5]
[1758165437971,5.14323438,247.62,247.55,0.5]
[1758165438661,0.28432314,247.61,247.55,0.5]
[1758165438866,1.10474359,247.6,247.55,0.5]
[1758165439063,0.7,247.59,247.55,0.5]
[1758165439571,0.7,247.58,247.55,0.5]
[1758165439881,0.7,247.57,247.55,0.5]
[1758165441275,0.40474359,247.59,247.55,0.5]
[1758165441479,1.10474359,247.59,247.55,0.5]
[1758165441681,0.7,247.58,247.55,0.5]
[1758165442086,0.7,247.57,247.55,0.5]
[1758165442380,0.40474359,247.59,247.55,0.5]
[1758165442683,0.7,247.58,247.55,0.5]
[1758165442860,0.7,247.57,247.55,0.5]
[1758165443287,0.7,247.6,247.55,0.5]
[1758165443480,1.10474359,247.59,247.55,0.5]
[1758165443779,0.7,247.58,247.55,0.5]
[1758165444289,0.7,247.57,247.55,0.5]
[1758165444586,0.40474359,247.6,247.55,0.5]
[1758165444782,0.7,247.56,247.55,0.5]
[1758165448494,1.10474359,247.56,247.55,0.5]
[1758165448881,4.03958796,247.55,247.53,0.03]
[1758165449070,0.40474359,247.54,247.53,0.03]
[1758165449402,1.10474359,247.58,247.53,0.03]
[1758165449589,36.74386948,247.58,247.53,0.03]
[1758165449888,0.7,247.57,247.53,0.03]
[1758165450388,0.7,247.56,247.53,0.03]
[1758165450772,0.7,247.55,247.53,0.03]
[1758165451296,1.10474359,247.54,247.53,0.03]
[1758165451478,0.10474359,247.54,247.53,0.03]
[1758165452580,5.0395414,247.56,247.53,0.03]
[1758165453566,0.7,247.55,247.53,0.03]
[1758165453770,4.73964062,247.55,247.53,0.03]
[1758165454086,0.7,247.54,247.53,0.03]
[1758165454571,0.98432314,247.54,247.53,0.03]
[1758165455393,15.83238529,247.54,247.53,0.03]
[1758165455698,18.54696542,247.54,247.53,0.03]
[1758165457084,43.9198315,247.53,247.52,1e-08]
[1758165457394,43.9198315,247.53,247.51,0.1]
[1758165457395,39.87991715,247.51,247.5,0.03]
[1758165457594,47.88720621,247.51,247.5,0.03]
[1758165457770,48.58720621,247.51,247.5,0.03]
[1758165457971,47.33473807,247.51,247.5,0.03]
[1758165458176,48.58720621,247.51,247.5,0.03]
[1758165458394,48.58720621,247.51,247.48,0.03]
[1758165458395,13.87991715,247.5,247.48,0.03]
[1758165458584,17.84696542,247.49,247.48,0.03]
[1758165458785,69.51449728,247.49,247.48,0.03]
[1758165458981,39.59559401,247.46,247.38,0.03]
[1758165459290,39.87991715,247.46,247.38,0.03]
[1758165459500,44.62097429,247.46,247.38,0.03]
[1758165459803,48.58362453,247.46,247.38,0.03]
[1758165460501,47.33115639,247.46,247.38,0.03]
[1758165460697,79.57115639,247.46,247.38,0.03]
[1758165460999,76.78256739,247.46,247.38,0.03]
[1758165461378,74.07238529,247.46,247.38,0.03]
[1758165461579,76.77935434,247.46,247.38,0.03]
[1758165462103,44.53935434,247.46,247.38,0.03]
[1758165462300,76.77935434,247.46,247.38,0.03]
[1758165462678,72.81991715,247.46,247.38,0.03]
[1758165462879,74.07238529,247.46,247.38,0.03]
[1758165463801,39.59559401,247.39,247.38,0.03]
[1758165464009,73.37238529,247.39,247.38,0.03]
[1758165464186,74.07238529,247.39,247.38,0.03]
[1758165464381,72.81991715,247.39,247.38,0.03]
[1758165464602,74.07238529,247.39,247.38,0.03]
[1758165465198,41.83238529,247.39,247.38,0.03]
[1758165465495,74.07238529,247.39,247.38,0.03]
[1758165466285,78.11458586,247.39,247.38,0.03]
[1758165467803,13.87991715,247.38,247.34,0.03]
[1758165468004,39.87991715,247.37,247.34,0.03]
[1758165468182,77.39491267,247.37,247.34,0.03]
[1758165468509,76.84244453,247.37,247.34,0.03]
[1758165469388,78.09491267,247.37,247.34,0.03]
[1758165469891,78.80478042,247.37,247.34,0.03]
[1758165470106,78.10478042,247.37,247.34,0.03]
[1758165471484,78.80478042,247.37,247.34,0.03]
[1758165473711,76.84244453,247.37,247.34,0.03]
[1758165473907,78.80478042,247.37,247.34,0.03]
[1758165474504,52.80478042,247.37,247.34,0.03]
[1758165475709,18.62244453,247.37,247.34,0.03]
[1758165476010,50.78244453,247.37,247.34,0.03]
[1758165476313,52.74478042,247.37,247.34,0.03]
[1758165476895,39.59559401,247.34,247.33,0.03]
[1758165477204,0.28432314,247.32,247.31,1e-08]
[1758165477393,49.98458893,247.32,247.31,1e-08]
[1758165477590,50.68458893,247.32,247.31,1e-08]
[1758165477789,54.72793358,247.32,247.31,1e-08]
[1758165478210,50.8032618,247.32,247.31,1e-08]
[1758165478415,54.72793358,247.32,247.31,1e-08]
[1758165480293,54.72793358,247.32,247.29,0.03]
[1758165480294,13.87991715,247.31,247.3,1e-08]
[1758165480499,23.3486016,247.31,247.3,1e-08]
[1758165480713,26.03804836,247.31,247.3,1e-08]
[1758165480921,46.03804836,247.31,247.3,1e-08]
[1758165481112,46.03820396,247.31,247.3,1e-08]
[1758165481509,13.87991715,247.27,247.17,0.67]
[1758165481813,78.10657885,247.26,247.17,0.67]
[1758165482023,43.92424296,247.26,247.11,0.1]
[1758165482223,76.14424296,247.26,247.25,0.7]
[1758165482428,78.10657885,247.26,247.25,0.03]
[1758165482942,41.84225304,247.26,247.25,0.03]
[1758165483212,74.10225304,247.26,247.25,0.03]
[1758165483420,72.13991715,247.26,247.25,0.03]
[1758165483604,74.10225304,247.26,247.25,0.03]
[1758165483800,41.84225304,247.26,247.25,0.75]
[1758165483993,39.87991715,247.26,247.25,0.75]
[1758165484203,72.13991715,247.26,247.25,0.75]
[1758165484396,73.96009147,247.26,247.25,0.75]
[1758165485027,6.0064103,247.28,247.25,0.75]
[1758165485222,32.24,247.27,247.25,0.75]
[1758165485513,1.96233589,247.31,247.26,0.72]
[1758165485699,1.96233589,247.31,247.27,0.72]
[1758165485700,32.24,247.3,247.27,0.72]
[1758165486017,32.24,247.3,247.28,0.72]
[1758165486211,13.59559401,247.32,247.29,0.72]
[1758165486414,32.24,247.31,247.29,0.72]
[1758165486813,32.24,247.31,247.3,0.72]
[1758165487323,4.18583322,247.3,247.25,0.03]
[1758165487506,0.28432314,247.28,247.26,0.72]
[1758165487711,32.24,247.27,247.26,0.72]
[1758165488233,34.48665903,247.27,247.25,0.03]
[1758165488395,1.96233589,247.26,247.25,0.03]
[1758165488726,2.24665903,247.26,247.25,0.03]
[1758165489507,0.28432314,247.26,247.25,0.03]
[1758165490417,0.28432314,247.26,247.25,0.75]
[1758165491109,32.48432314,247.26,247.25,0.75]
[1758165491305,0.06,247.31,247.25,0.75]
[1758165491511,32.2,247.3,247.25,0.75]
[1758165492420,32.2,247.3,247.22,0.03]
[1758165493724,32.2,247.3,247.22,4.07493527]
[1758165494429,32.2,247.3,247.23,0.35]
[1758165494728,0.06,247.31,247.23,0.35]
[1758165495625,0.06,247.31,247.24,4.04465296]
[1758165496826,4.10354545,247.31,247.23,0.35]
[1758165497199,0.06,247.31,247.23,4.39476254]
[1758165497917,6.06587336,247.31,247.23,0.35]
[1758165498325,4.10353747,247.31,247.23,4.39476834]
[1758165498521,0.28432314,247.3,247.22,0.03]
[1758165498706,6.2908654,247.27,247.22,0.03]
[1758165498912,0.69,247.26,247.22,0.03]
[1758165500125,6.2908654,247.27,247.22,0.03]
[1758165500334,0.69,247.25,247.22,0.03]
[1758165500531,4.73456359,247.25,247.22,0.03]
[1758165501021,0.69,247.24,247.22,0.03]
[1758165501515,0.28432314,247.26,247.22,0.03]
[1758165502427,0.69,247.25,247.22,0.03]
[1758165502729,2.71147996,247.27,247.22,0.03]
[1758165502931,0.69,247.28,247.22,0.03]
[1758165503108,32.12,247.29,247.22,0.38]
[1758165503311,0.75,247.31,247.22,0.38]
[1758165503530,0.28432314,247.3,247.22,0.03]
[1758165503827,0.69,247.29,247.22,0.03]
[1758165504628,4.73390638,247.29,247.22,0.03]
[1758165504817,0.28432314,247.28,247.22,0.03]
[1758165505016,0.69,247.27,247.22,0.03]
[1758165505215,0.69,247.26,247.22,0.03]
[1758165505944,0.28432314,247.28,247.22,0.03]
[1758165506534,0.28432314,247.29,247.22,0.38]
[1758165506744,0.28432314,247.29,247.23,4.04481656]
[1758165507118,0.28432314,247.29,247.22,0.38]
[1758165507523,0.28432314,247.29,247.22,4.4249474]
[1758165507938,0.28432314,247.29,247.22,4.0749474]
[1758165508639,0.69,247.28,247.22,0.03]
[1758165509350,0.28432314,247.26,247.22,0.03]
[1758165509846,0.69,247.25,247.22,0.03]
[1758165510014,0.69,247.24,247.22,0.03]
[1758165511247,4.3287029,247.26,247.22,0.03]
[1758165511432,0.69,247.25,247.22,0.03]
[1758165511626,13.59559401,247.24,247.21,0.1]
[1758165511828,0.28432314,247.22,247.21,0.1]
[1758165512226,0.97432314,247.22,247.21,0.1]
[1758165512422,14.56991715,247.22,247.21,0.1]
[1758165513041,18.61489732,247.22,247.21,0.1]
[1758165516253,20.57723321,247.22,247.21,0.1]
[1758165516852,21.33349347,247.22,247.21,0.1]
[1758165517146,23.29582936,247.22,247.21,0.1]
[1758165518057,24.29582936,247.22,247.21,0.1]
[1758165519948,26.25816525,247.22,247.21,1e-08]
[1758165521960,58.47816525,247.22,247.21,0.03000001]
[1758165522263,56.57582936,247.22,247.21,0.03000001]
[1758165522425,58.53816525,247.22,247.21,0.03000001]
[1758165523059,54.61349347,247.22,247.21,0.03000001]
[1758165523257,56.57582936,247.22,247.21,0.03000001]
[1758165523757,24.35582936,247.22,247.21,0.03000001]
[1758165523941,56.43366779,247.22,247.21,0.03000001]
[1758165524340,56.57582936,247.22,247.21,0.03000001]
[1758165524947,58.53816525,247.22,247.21,0.03000001]
[1758165525355,13.87991715,247.21,247.2,1e-08]
[1758165525651,16.5985133,247.21,247.2,1e-08]
[1758165525953,17.2885133,247.21,247.2,1e-08]
[1758165526545,21.21318508,247.21,247.2,1e-08]
[1758165527340,154.01318508,247.21,247.2,1e-08]
[1758165527739,150.72522459,247.2,247.19,0.03]
[1758165527946,25.22283372,247.2,247.19,0.03]
[1758165528149,26.0,247.17,247.01,0.1]
[1758165528357,0.28432314,247.07,247.01,0.1]
[1758165528666,0.14216157,247.04,247.01,0.1]
[1758165528857,13.73775558,247.05,247.02,0.38]
[1758165528858,32.54432314,247.03,247.02,0.38]
[1758165529057,32.56432314,247.03,247.02,0.38]
[1758165529450,0.28432314,247.02,247.01,0.1]
[1758165529648,0.28432314,247.02,247.01,0.48]
[1758165530170,32.56432314,247.02,247.01,0.48]
[1758165530344,13.59559401,247.11,247.01,4.5283555]
[1758165530538,4.04661702,247.12,247.01,4.5283555]
[1758165530539,13.59559401,247.09,247.02,0.38]
[1758165531055,0.14216157,247.08,247.02,0.38]
[1758165531238,0.69,247.13,247.02,0.38]
[1758165531556,13.59559401,247.11,247.02,0.38]
[1758165531863,0.28432314,247.1,247.02,4.42810682]
[1758165532076,15.13854552,247.08,247.01,4.52837104]
[1758165532277,15.13854552,247.08,247.01,4.52833373]
[1758165532470,15.13854552,247.08,247.02,0.38]
[1758165532776,0.28432314,247.05,247.02,0.38]
[1758165532958,32.32,247.06,247.03,0.38]
[1758165533149,32.32,247.06,247.04,0.38]
[1758165533344,32.32,247.06,247.05,0.38]
[1758165533752,0.28432314,247.08,247.05,0.38]
[1758165534061,0.28432314,247.08,247.06,0.38]
[1758165534247,32.3,247.09,247.01,10.22104773]
[1758165534449,32.3,247.09,247.07,0.38]
[1758165534648,32.3,247.09,247.05,0.38]
[1758165534849,0.28432314,247.09,247.06,0.38]
[1758165535063,0.14216157,247.09,247.07,0.38]
[1758165535265,0.28432314,247.09,247.07,0.38]
[1758165535655,0.28432314,247.09,247.05,0.38]
[1758165535863,0.28432314,247.09,247.06,0.38]
[1758165536947,0.14216157,247.09,247.06,0.38]
[1758165537368,1.0,247.09,247.07,0.38]
[1758165538252,1.0,247.09,247.05,10.11904276]
[1758165538253,1.0,247.09,247.08,4.42727213]
[1758165540972,1.0,247.09,247.08,30.45727213]
[1758165541360,0.28432314,247.19,247.08,40.57545247]
[1758165541568,0.28432314,247.19,247.09,0.38]
[1758165541760,32.26,247.2,247.09,0.38]
[1758165541978,0.28432314,247.19,247.09,0.38]
[1758165542174,2.06078994,247.19,247.09,0.38]
[1758165542477,0.14216157,247.18,247.09,0.38]
[1758165542680,0.68,247.17,247.08,4.07727213]
[1758165542877,0.96432314,247.16,247.08,4.07727213]
[1758165543260,4.04645328,247.13,247.08,0.03]
[1758165543454,0.28432314,247.12,247.08,0.03]
[1758165543654,0.28432314,247.1,247.08,0.03]
[1758165544268,32.24,247.12,247.08,0.03]
[1758165545072,0.28432314,247.14,247.08,0.03]
[1758165545380,13.59559401,247.2,247.1,4.04694455]
[1758165545686,45.83559401,247.19,247.1,30.04694455]
[1758165545884,0.68,247.2,247.11,0.38]
[1758165546183,32.3,247.21,247.11,0.38]
[1758165546561,32.98,247.21,247.11,0.38]
[1758165547585,32.98,247.21,247.13,26.0]
[1758165548076,0.06,247.21,247.14,0.38]
[1758165549188,0.06,247.21,247.15,26.0]
[1758165549360,0.06,247.21,247.16,0.38]
[1758165549565,0.06,247.21,247.19,26.0]
[1758165549762,0.74,247.21,247.13,26.38]
[1758165550181,0.74,247.21,247.15,26.0]
[1758165550489,0.06,247.21,247.15,26.0]
[1758165551787,0.06,247.21,247.16,4.04596212]
[1758165551996,0.06,247.21,247.16,14.16086744]
[1758165552166,0.06,247.21,247.17,0.38]
[1758165552369,0.06,247.21,247.16,14.16086744]
[1758165552568,0.06,247.21,247.16,4.04596212]
[1758165554487,0.68,247.2,247.1,10.11731069]
[1758165554672,0.82216157,247.19,247.11,4.04678078]
[1758165554991,0.68,247.19,247.11,14.16373274]
[1758165555191,0.68,247.19,247.11,14.54373274]
[1758165556094,5.00983685,247.19,247.11,4.04678078]
[1758165556677,0.68,247.18,247.11,4.04678078]
[1758165556873,0.28432314,247.19,247.11,4.04678078]
[1758165558200,19.63941484,247.21,247.11,4.04678078]
[1758165558201,0.28432314,247.2,247.11,4.04678078]
[1758165558499,0.68,247.18,247.11,4.04678078]
[1758165559068,0.96432314,247.2,247.11,14.16373274]
[1758165559469,0.06,247.21,247.11,14.16373274]
[1758165559691,0.06,247.21,247.12,0.38]
[1758165559887,0.06,247.19,247.12,0.38]
[1758165560483,0.06,247.19,247.13,4.04645328]
[1758165560688,0.06,247.19,247.14,0.38]
[1758165561078,0.06,247.19,247.14,26.38]
[1758165561278,0.06,247.19,247.14,26.0]
[1758165561496,0.06,247.19,247.16,26.0]
[1758165562078,0.06,247.19,247.15,0.38]
[1758165562614,0.06,247.19,247.16,4.04596212]
[1758165562817,0.06,247.19,247.18,26.0]
[1758165562979,0.06,247.19,247.18,58.1]
[1758165563302,0.06,247.19,247.18,26.38]
[1758165563505,0.06,247.21,247.18,58.48]
[1758165563680,0.06,247.21,247.19,0.38]
[1758165564187,0.06,247.21,247.2,0.38]
[1758165564607,0.06,247.21,247.2,4.42530744]
[1758165564985,0.06,247.21,247.2,18.02090145]
[1758165565205,0.06,247.24,247.23,26.0]
[1758165565385,0.06,247.24,247.23,58.1]
[1758165565681,0.1,247.29,247.23,58.48]
[1758165565886,0.1,247.29,247.24,0.38]
[1758165566284,0.1,247.29,247.25,13.59559401]
[1758165566483,0.1,247.29,247.28,26.0]
[1758165566689,0.06,247.34,247.28,26.0]
[1758165566690,0.06,247.34,247.28,62.1439987]
[1758165566905,0.06,247.34,247.29,0.38]
[1758165567109,0.06,247.34,247.3,0.38]
[1758165568108,0.06,247.34,247.3,32.48]
[1758165568797,0.06,247.34,247.3,36.52367165]
[1758165569215,0.06,247.34,247.33,26.0]
[1758165569529,0.1,247.39,247.35,26.0]
[1758165569530,0.78,247.39,247.35,26.0]
[1758165570578,0.74,247.36,247.32,32.1]
[1758165570779,0.06,247.36,247.29,58.1]
[1758165571082,0.68,247.35,247.29,26.0]
[1758165571282,0.68,247.34,247.29,58.1]
[1758165571484,0.68,247.33,247.29,58.1]
[1758165571683,0.68,247.32,247.27,58.1]
[1758165571884,0.68,247.31,247.27,26.0]
[1758165572203,4.10273561,247.36,247.28,32.1]
[1758165572385,0.68,247.34,247.28,32.1]
[1758165573595,0.68,247.34,247.28,36.14395797]
[1758165574296,0.74,247.36,247.28,36.14395797]
[1758165574885,0.68,247.35,247.28,36.14395797]
[1758165575097,0.68,247.35,247.31,26.0]
[1758165575501,0.06,247.36,247.31,26.0]
[1758165575704,0.68,247.34,247.31,26.0]
[1758165575923,0.06,247.36,247.31,26.0]
[1758165576092,0.06,247.36,247.32,32.46]
[1758165576522,0.06,247.36,247.35,26.0]
[1758165576812,0.06,247.36,247.35,30.04285425]
[1758165578620,0.06,247.36,247.35,62.12285425]
[1758165578804,0.06,247.36,247.35,30.04285425]
[1758165579113,0.06,247.36,247.35,62.12285425]
[1758165579312,0.06,247.36,247.35,26.0]
[1758165579613,0.06,247.36,247.35,58.08]
[1758165580004,0.06,247.36,247.34,4.04297416]
[1758165580318,0.06,247.36,247.35,32.08]
[1758165583400,0.06,247.36,247.35,32.46]
[1758165585603,0.16,247.39,247.38,26.0]
[1758165585913,0.84,247.39,247.38,58.08]
[1758165586309,0.16,247.39,247.38,58.08]
[1758165589117,0.16,247.39,247.38,32.08]
[1758165589317,0.16,247.39,247.37,4.04249135]
[1758165589727,0.16,247.39,247.38,32.06]
[1758165591230,0.84,247.39,247.38,32.06]
[1758165591925,0.84,247.39,247.37,32.06]
[1758165592319,0.16,247.39,247.37,32.06]
[1758165592830,0.16,247.39,247.38,32.06]
[1758165593213,0.16,247.39,247.38,36.10236397]
[1758165594229,0.16,247.39,247.38,62.10236397]
[1758165594430,0.16,247.39,247.38,62.48236397]
[1758165595920,0.16,247.39,247.38,30.42236397]
[1758165596126,0.16,247.39,247.38,62.10236397]
[1758165597737,0.16,247.39,247.38,30.04236397]
[1758165598326,0.16,247.39,247.38,62.10236397]
[1758165598840,0.16,247.39,247.38,30.04236397]
[1758165599020,0.16,247.39,247.38,62.10236397]
[1758165599629,0.86,247.39,247.38,62.10236397]
[1758165599831,0.86,247.39,247.38,58.06]
[1758165600027,0.16,247.39,247.38,58.06]
[1758165600721,0.16,247.39,247.38,26.0]
[1758165600920,0.16,247.39,247.38,58.06]
[1758165601120,0.86,247.39,247.37,0.03]
[1758165601320,13.73775558,247.38,247.37,0.03]
[1758165601541,0.14216157,247.37,247.34,0.03]
[1758165601724,0.7,247.36,247.34,0.03]
[1758165601922,0.7,247.37,247.34,32.09]
[1758165602126,0.7,247.36,247.34,32.09]
[1758165602331,0.16,247.39,247.34,32.09]
[1758165602332,0.7,247.35,247.34,0.03]
[1758165603636,5.02717739,247.35,247.34,0.03]
[1758165603942,0.7,247.35,247.34,0.03]
[1758165604656,0.86,247.39,247.34,0.03]
[1758165604856,0.16,247.39,247.34,0.03]
[1758165605357,0.16,247.39,247.36,26.0]
[1758165605534,0.16,247.39,247.38,4.04236397]
[1758165609043,0.1,247.46,247.45,13.59559401]
[1758165609355,0.1,247.49,247.48,26.0]
[1758165609654,0.1,247.49,247.48,62.10073056]
[1758165611644,0.8,247.49,247.45,30.04110472]
[1758165611851,0.7,247.48,247.46,58.06]
[1758165612060,0.7,247.48,247.47,32.06]
[1758165612432,0.1,247.49,247.47,32.06]
[1758165612628,0.8,247.49,247.48,26.0]
[1758165612937,0.8,247.49,247.48,58.06]
[1758165613845,0.1,247.49,247.48,58.06]
[1758165614761,0.1,247.49,247.47,30.04083366]
[1758165614933,0.1,247.49,247.48,32.04]
[1758165615134,0.7,247.48,247.46,32.04]
[1758165615354,0.7,247.47,247.46,32.04]
[1758165616151,0.16,247.49,247.46,32.04]
[1758165616476,0.7,247.48,247.46,32.04]
[1758165616762,0.7,247.47,247.46,32.04]
[1758165617340,0.7,247.47,247.41,26.0]
[1758165617541,0.7,247.46,247.42,32.04]
[1758165617858,0.7,247.45,247.42,32.04]